{"text_format":"3","workbook":"xlsx","n_sheets":1,"sheets":["Таблица 1"],"not_rendered":{"defined_names":1},"read":"whole","date_system":"1900"}

{"sheet":"Таблица 1","index":0,"n_rows":63,"n_cols":4,"rows_kept":63,"merged":[[2,2,2,3],[3,0,3,3],[5,0,6,0],[5,1,6,1],[5,2,5,3],[8,0,12,0],[13,0,17,0],[18,0,20,0],[25,0,27,0],[32,0,34,0],[38,0,41,0],[42,0,44,0],[48,0,50,0],[54,0,56,0],[57,0,59,0],[62,0,63,1],[62,3,63,3]]}
[]
[]
[null,null,"Таблица 1"]
["Информация об изменениях объемов финансирования и целевых показателей муниципальной программы города Усолье-Сибирское «Профилактика социально значимых заболеваний (туберкулез, ВИЧ/СПИД, ИППП) и социально негативных явлений (алкоголизм, табакокурение) на территории города Усолье-Сибирское» на 2019-2025 годы\nза  2023 год"]
[]
["Наименование программы, подпрограммы,  основного мероприятия, мероприятия, проекта","Источники финансирования / Наименование целевого показателя","Предусмотренный объем финансирования (руб.) / Значение целевого показателя"]
[null,null,"Редакция программы от 01.03.2023 г. №424-па\n(на начало отчетного периода)","Редакция программы\n от 28.12.2023 г.  №3351-па\n(на конец отчетного периода)"]
[1,2,3,4]
["Муниципальная программа города Усолье-Сибирское «Профилактика социально значимых заболеваний (туберкулез, ВИЧ/СПИД, ИППП) и социально негативных явлений (алкоголизм, табакокурение) на территории города Усолье-Сибирское»                                                на 2019-2025 годы","Всего",{"$f":"C14+C39+C55","v":{"v":537200,"d":"537,200.00"}},{"$f":"D14+D39+D55","v":{"v":573150,"d":"573,150.00"}}]
[null,"Бюджет города",{"$f":"C15+C40+C59","v":{"v":537200,"d":"537,200.00"}},{"$f":"D15+D40+D56","v":{"v":573150,"d":"573,150.00"}}]
[null,"Целевой показатель 1. Количество информационных каналов передачи информации о доступных мерах профилактики социально значимых заболеваний (ед.).",2,3]
[null,"Целевой показатель 2. Количество информационных каналов передачи информации о доступных мерах профилактики социально негативных явлений (ед.).",1,1]
[null,"Целевой показатель 3. Количество вновь привлеченных врачей-специалистов для работы в учреждениях здравоохранения города Усолье-Сибирское, получивших дополнительную социальную поддержку (ед.).",2,4]
["Подпрограмма 1. \"Профилактика социально значимых заболеваний (туберкулез, ВИЧ/СПИД, ИППП)\" на 2019-2025 годы","Всего",{"$f":"C15","v":{"v":281150,"d":"281,150.00"}},{"$f":"D15","v":{"v":136120,"d":"136,120.00"}}]
[null,"Бюджет города",{"$f":"C20+C27+C34","v":{"v":281150,"d":"281,150.00"}},{"$f":"D20+D27+D34","v":{"v":136120,"d":"136,120.00"}}]
[null,"Целевой показатель 1. Количество информационных каналов передачи информации о доступных мерах профилактики туберкулеза (ед.).",2,3]
[null,"Целевой показатель 2. Количество информационных каналов передачи информации о доступных мерах профилактики ВИЧ/СПИДа (ед.).",2,3]
[null,"Целевой показатель 3. Количество информационных каналов передачи информации о доступных мерах профилактики ИППП (ед.).",0,1]
["Основное мероприятие 1.1.\n\"Информирование населения о доступных мерах профилактики туберкулеза\"","Всего",{"v":121825,"d":"121,825.00"},{"v":28025,"d":"28,025.00"}]
[null,"Бюджет города",{"v":121825,"d":"121,825.00"},{"$f":"D22+D23+D24+D25","v":{"v":28025,"d":"28,025.00"}}]
[null,"Целевой показатель 1. Количество информационных каналов передачи информации о доступных мерах профилактики туберкулеза (ед.).",2,3]
["Мероприятие 1.1.1.\n«Информирование населения о доступных мерах профилактики туберкулеза в электронных СМИ »\n",null,{"v":93800,"d":"93,800.00"},{"v":0,"d":"0.00"}]
["\nМероприятие 1.1.2.\n«Наружная социальная реклама о доступных мерах профилактики туберкулеза»\n\n",null,{"v":28025,"d":"28,025.00"},{"v":28025,"d":"28,025.00"}]
["Мероприятие 1.1.3.\n«Изготовление раздаточного материала о доступных мерах профилактики туберкулеза»\n\n",null,{"v":0,"d":"0.00"},{"v":0,"d":"0.00"}]
["Мероприятие 1.1.4.\n«Проведение городских акций»\n\n",null,{"v":0,"d":"0.00"},{"v":0,"d":"0.00"}]
["Основное мероприятие 1.2.\n\"Информирование населения о доступных мерах профилактики ВИЧ/СПИДа\"","Всего",{"v":159325,"d":"159,325.00"},{"v":108095,"d":"108,095.00"}]
[null,"Бюджет города",{"v":159325,"d":"159,325.00"},{"v":108095,"d":"108,095.00"}]
[null,"Целевой показатель 2. Количество информационных каналов передачи информации о доступных мерах профилактики ВИЧ/СПИДа (ед.).",2,3]
["\nМероприятие 1.2.1.\n«Информирование населения о доступных мерах профилактики ВИЧ/СПИДа в электронных СМИ»\n",null,{"v":93800,"d":"93,800.00"},{"v":0,"d":"0.00"}]
["\nМероприятие 1.2.2.\n«Наружная социальная реклама о доступных мерах профилактики ВИЧ/СПИДа»\n\n",null,{"v":28025,"d":"28,025.00"},{"v":28025,"d":"28,025.00"}]
["Мероприятие 1.2.3.\n«Изготовление раздаточного материала о доступных мерах профилактики ВИЧ/СПИДа»\n\n",null,{"v":0,"d":"0.00"},{"v":0,"d":"0.00"}]
["\nМероприятие 1.2.4.\n«Проведение городских акций»\n\n",null,{"v":37500,"d":"37,500.00"},{"v":80070,"d":"80,070.00"}]
["Основное мероприятие 1.3.\n\"Информирование населения о доступных мерах профилактики ИППП\"","Всего",{"$f":"C34","v":{"v":0,"d":"0.00"}},{"$f":"D34","v":{"v":0,"d":"0.00"}}]
[null,"Бюджет города",{"v":0,"d":"0.00"},{"v":0,"d":"0.00"}]
[null,"Целевой показатель 3. Количество информационных каналов передачи информации о доступных мерах профилактики ИППП (ед.).",0,1]
["Мероприятие 1.3.1.\n«Наружная социальная реклама о доступных мерах профилактики ИППП»\n\n",null,{"v":0,"d":"0.00"},{"v":0,"d":"0.00"}]
["Мероприятие 1.3.2.\n«Изготовление раздаточного материала о доступных мерах профилактики ИППП»\n\n",null,{"v":0,"d":"0.00"},{"v":0,"d":"0.00"}]
["Мероприятие 1.3.3.\n«Проведение городских акций»\n\n",null,{"v":0,"d":"0.00"},{"v":0,"d":"0.00"}]
["Подпрограмма 2. \"Профилактика социально негативных явлений: алкоголизм, табакокурение\" на 2019 - 2025 годы","Всего",{"$f":"C40","v":{"v":56050,"d":"56,050.00"}},{"$f":"D40","v":{"v":37030,"d":"37,030.00"}}]
[null,"Бюджет города",{"$f":"C44+C50","v":{"v":56050,"d":"56,050.00"}},{"$f":"D44+D50","v":{"v":37030,"d":"37,030.00"}}]
[null,"Целевой показатель 1. Количество информационных каналов передачи информации о доступных мерах профилактики алкоголизма (ед.).",1,1]
[null,"Целевой показатель 2. Количество информационных каналов передачи информации о доступных мерах профилактики табакокурения (ед.).",1,1]
["Основное мероприятие 2.1.\n\"Информирование населения о доступных мерах профилактики алкоголизма\"","Всего",{"v":28025,"d":"28,025.00"},{"v":28025,"d":"28,025.00"}]
[null,"Бюджет города",{"v":28025,"d":"28,025.00"},{"v":28025,"d":"28,025.00"}]
[null,"Целевой показатель 1. Количество информационных каналов передачи информации о доступных мерах профилактики алкоголизма (ед.).",1,1]
["Мероприятие 2.1.1.\n«Наружная социальная реклама о доступных мерах профилактики алкоголизма»\n\n",null,{"v":28025,"d":"28,025.00"},{"v":28025,"d":"28,025.00"}]
["Мероприятие 2.1.2.\n«Изготовление раздаточного материала о доступных мерах профилактики алкоголизма»\n\n",null,{"v":0,"d":"0.00"},{"v":0,"d":"0.00"}]
["Мероприятие 2.1.3.\n«Проведение городских акций»\n\n",null,{"v":0,"d":"0.00"},{"v":0,"d":"0.00"}]
["Основное мероприятие 2.2.\n\"Информирование населения о доступных мерах профилактики табакокурения\"","Всего",{"$f":"C50","v":{"v":28025,"d":"28,025.00"}},{"$f":"D50","v":{"v":9005,"d":"9,005.00"}}]
[null,"Бюджет города",{"v":28025,"d":"28,025.00"},{"v":9005,"d":"9,005.00"}]
[null,"Целевой показатель 2. Количество информационных каналов передачи информации о доступных мерах профилактики табакокурения (ед.).",1,1]
["Мероприятие 2.2.1.\n«Наружная социальная реклама о доступных мерах профилактики табакокурения»\n\n",null,{"v":28025,"d":"28,025.00"},{"v":9005,"d":"9,005.00"}]
["Мероприятие 2.2.2.\n«Изготовление раздаточного материала о доступных мерах профилактики табакокурения»\n\n",null,{"v":0,"d":"0.00"},{"v":0,"d":"0.00"}]
["Мероприятие 2.2.3.\n«Проведение городских акций»\n\n",null,{"v":0,"d":"0.00"},{"v":0,"d":"0.00"}]
["Подпрограмма 3. \"Дополнительная социальная поддержка кадров здравоохранения города Усолье-Сибирское\" на 2019-2025 годы","Всего",{"$f":"C56","v":{"v":200000,"d":"200,000.00"}},{"$f":"D56","v":{"v":400000,"d":"400,000.00"}}]
[null,"Бюджет города",{"$f":"C59","v":{"v":200000,"d":"200,000.00"}},{"$f":"D59","v":{"v":400000,"d":"400,000.00"}}]
[null,"Целевой показатель 1. Количество вновь привлеченных врачей-специалистов для работы в учреждениях здравоохранения города Усолье-Сибирское, получивших дополнительную социальную поддержку (ед.).",2,4]
["Основное мероприятие 3.1.\n\"Создание условий для укрепления кадрового состава системы здравоохранения в городе Усолье-Сибирское\"","Всего",{"$f":"C59","v":{"v":200000,"d":"200,000.00"}},{"$f":"D59","v":{"v":400000,"d":"400,000.00"}}]
[null,"Бюджет города",{"v":200000,"d":"200,000.00"},{"v":400000,"d":"400,000.00"}]
[null,"Целевой показатель 1. Количество вновь привлеченных врачей-специалистов для работы в учреждениях здравоохранения города Усолье-Сибирское, получивших дополнительную социальную поддержку (ед.).",2,4]
["Мероприятие 3.1.1.\n«Предоставление выплат учреждениям здравоохранения, осуществляющим свою деятельность на территории города Усолье-Сибирское на предоставление единовременной выплаты (подъемных) вновь привлеченным врачам-специалистам»",null,{"v":200000,"d":"200,000.00"},{"v":400000,"d":"400,000.00"}]
[]
["И.о. мэра города ",null,null,"Л.Н. Панькова"]